bitfinex-derivatives/quotes_ETHF0:USTF0_20250112
["timestamp","ask_amount","ask_price","bid_price","bid_amount"]
[1736653542382,0.21321,3284.5,3284.4,3.6713]
[1736653542876,0.21321,3284.5,3284.4,3.88452]
[1736653543077,0.21321,3284.5,3284.4,4.33182]
[1736653543471,0.21321,3284.5,3284.4,4.1186]
[1736653543872,0.21321,3284.5,3284.4,4.33182]
[1736653546484,0.21321,3284.5,3284.4,4.1186]
[1736653547182,1.2149394,3284.6,3284.4,4.33182]
[1736653547681,0.21321,3284.5,3284.4,4.33182]
[1736653548583,1.0017294,3284.6,3284.4,4.33182]
[1736653548785,1.2149394,3284.6,3284.4,4.33182]
[1736653549081,0.21321,3284.5,3284.4,4.33182]
[1736653550774,0.21321,3284.5,3284.4,1.12402]
[1736653550984,1.2149394,3284.6,3284.4,1.12402]
[1736653551782,0.21321,3284.6,3284.5,0.21321]
[1736653553890,0.21321,3284.6,3284.4,0.9108]
[1736653553891,0.21321,3284.5,3284.4,1.12402]
[1736653554189,0.21321,3284.6,3284.5,0.21321]
[1736653554877,0.21321,3284.5,3284.4,1.12402]
[1736653555074,0.21321,3284.5,3284.4,0.9108]
[1736653555274,0.21321,3284.5,3284.4,1.12402]
[1736653556088,0.21321,3284.6,3284.4,1.12402]
[1736653557083,0.21321,3284.6,3284.5,0.21321]
[1736653557981,0.21321,3284.5,3284.4,1.12402]
[1736653561181,0.21321,3284.5,3284.4,0.9108]
[1736653561386,0.21321,3284.5,3284.4,0.4473]
[1736653561585,0.67841,3284.5,3284.4,0.4473]
[1736653564306,1.15391,3284.5,3284.4,0.4473]
[1736653575406,0.21327,3283.6,3283.5,4.77862759]
[1736653575597,1.2149994,3283.6,3283.5,4.77862759]
[1736653576407,1.0017294,3283.6,3283.3,0.4369]
[1736653576603,0.21331,3283.0,3282.9,3.42112]
[1736653576904,1.2150394,3283.0,3282.9,3.42112]
[1736653577100,1.0017294,3283.0,3282.9,3.42112]
[1736653577300,0.21331,3283.0,3282.9,3.42112]
[1736653578507,0.21331,3283.1,3282.9,3.42112]
[1736653579008,0.21331,3283.0,3282.8,0.21332]
[1736653579310,0.21329,3283.3,3282.8,0.21332]
[1736653579501,0.21332,3283.0,3282.8,0.21332]
[1736653580610,0.21332,3282.9,3282.7,1.59433]
[1736653582010,2.11934301,3283.4,3282.7,1.381]
[1736653582301,0.21332,3282.9,3282.7,1.59433]
[1736653585710,5.32714301,3283.4,3282.7,1.381]
[1736653586013,0.21332,3283.0,3282.8,0.21332]
[1736653593923,0.21332,3283.0,3282.7,4.5888]
[1736653594121,0.21332,3283.0,3282.9,0.21332]
[1736653596621,0.21332,3283.0,3282.8,0.21332]
[1736653596821,0.21332,3283.0,3282.9,0.21332]
[1736653599526,0.21332,3283.0,3282.7,4.5888]
[1736653599725,0.21332,3283.0,3282.9,0.21332]
[1736653604328,0.21332,3283.0,3282.7,1.381]
[1736653604329,3.2078,3283.6,3282.8,1.00319978]
[1736653604528,1.00319978,3283.8,3283.5,0.21328]
[1736653604729,0.21327,3283.7,3283.6,1.3156]
[1736653607936,0.21327,3283.7,3283.6,0.4382]
[1736653608730,1.00319978,3283.8,3283.3,0.4479]
[1736653608932,1.21648978,3283.4,3283.3,0.4479]
[1736653609833,0.21329,3283.3,3283.2,0.4423]
[1736653624247,1.21648978,3283.3,3283.2,0.4423]
[1736653624647,1.00319978,3283.3,3282.9,0.4574]
[1736653624950,1.21650978,3283.0,3282.9,0.4574]
[1736653653566,0.21332,3282.9,3282.8,0.4607]
[1736653653965,0.67012,3282.9,3282.8,0.4607]
[1736653654375,0.21334,3282.6,3282.5,0.4444]
[1736653654567,1.21653978,3282.6,3282.5,0.9212]
[1736653655372,1.21653978,3282.6,3282.5,0.4768]
[1736653657266,0.21338,3282.0,3281.9,0.21338]
[1736653657967,0.21338,3281.9,3281.7,1.3963]
[1736653658172,0.21338,3281.9,3281.8,0.21339]
[1736653658566,0.21338,3281.9,3281.7,1.60969]
[1736653659174,1.00319978,3281.8,3281.7,1.3963]
[1736653659377,1.00319978,3281.8,3281.7,1.6097]
[1736653659577,1.21658978,3281.8,3281.7,1.3963]
[1736653659876,1.00319978,3281.8,3281.7,1.6097]
[1736653661077,1.21657978,3282.0,3281.7,1.3963]
[1736653661281,1.21657978,3282.0,3281.8,0.21339]
[1736653664674,1.00319978,3282.4,3281.9,1.00319978]
[1736653664874,1.21654978,3282.5,3282.1,1.00319978]
[1736653665077,1.21654978,3282.5,3282.3,0.21336]
[1736653665878,0.21335,3282.4,3282.3,0.21336]
[1736653666081,1.21654978,3282.5,3282.3,0.21336]
[1736653666477,1.00319978,3282.5,3282.3,0.21336]
[1736653666683,0.21335,3282.4,3282.3,0.21336]
[1736653667881,1.21654978,3282.5,3282.4,0.21335]
[1736653669679,0.21336,3282.3,3282.2,1.59706]
[1736653669882,1.21655978,3282.3,3282.2,1.59706]
[1736653670976,1.21655978,3282.3,3282.2,1.3837]
[1736653671281,1.21655978,3282.3,3282.2,1.59706]
[1736653673472,1.00319978,3282.3,3282.2,1.59706]
[1736653673679,0.21335,3282.4,3282.3,0.21336]
[1736653675082,0.21336,3282.4,3282.3,0.21336]
[1736653675583,0.21336,3282.3,3282.2,1.59706]
[1736653676785,1.00319978,3282.5,3282.4,0.21335]
[1736653677489,0.21335,3282.4,3282.3,0.21336]
[1736653680693,0.21336,3282.3,3282.2,1.59706]
[1736653680893,1.21655978,3282.3,3282.2,1.3837]
[1736653688195,1.21655978,3282.3,3282.2,0.4763]
[1736653692701,1.00319978,3282.3,3282.0,3.2078]
[1736653692899,0.4784,3282.5,3282.0,3.2078]
[1736653692900,1.21656978,3282.1,3282.0,3.2078]
[1736653693300,0.21338,3282.0,3281.9,0.4705]
[1736653696008,0.68748,3282.0,3281.9,0.4705]
[1736653697005,0.2134,3281.6,3281.5,3.2078]
[1736653697210,0.21342,3281.4,3281.3,8.17190332]
[1736653698107,0.21342,3281.4,3281.3,3.39327573]
[1736653701407,0.21341,3281.5,3281.3,3.39327573]
[1736653701606,0.21341,3281.5,3281.4,0.21341]
[1736653701809,0.21342,3281.4,3281.3,3.39327573]
[1736653702009,0.21342,3281.4,3281.3,3.60669573]
[1736653704014,0.21342,3281.4,3281.3,3.39327573]
[1736653704217,0.21342,3281.4,3281.3,3.60669573]
[1736653705016,1.00319978,3281.6,3281.3,3.39327573]
[1736653705216,0.21341,3281.5,3281.4,0.21341]
[1736653707318,1.00319978,3281.6,3281.4,0.21341]
[1736653707615,1.21660978,3281.6,3281.4,0.21341]
[1736653708915,1.00319978,3281.6,3281.4,0.21341]
[1736653709115,0.21341,3281.5,3281.4,0.21341]
[1736653709712,1.00319978,3281.6,3281.4,0.21341]
[1736653709915,1.21660978,3281.6,3281.5,0.21341]
[1736653710413,0.21341,3281.5,3281.4,0.21341]
[1736653710615,1.00319978,3281.6,3281.4,0.21341]
[1736653710816,1.21660978,3281.6,3281.5,0.21341]
[1736653711219,1.00319978,3281.6,3281.5,0.21341]
[1736653711519,1.21658978,3281.8,3281.6,0.2134]
[1736653711717,1.21658978,3281.8,3281.7,0.9119]
[1736653711917,1.21658978,3281.8,3281.7,1.5755]
[1736653712326,3.2078,3282.0,3281.9,0.21338]
[1736653712511,0.9233,3282.6,3281.8,1.53667978]
[1736653712823,1.00319978,3282.6,3282.5,0.21334]
[1736653713119,1.21653978,3282.6,3282.5,0.21334]
[1736653713312,1.00319978,3282.6,3282.5,0.21334]
[1736653713814,1.21653978,3282.6,3282.5,0.21334]
[1736653714319,1.00319978,3282.6,3282.5,0.21334]
[1736653715219,1.21653978,3282.6,3282.5,0.21334]
[1736653716517,0.21335,3282.4,3282.3,0.21335]
[1736653716821,1.21654978,3282.4,3282.3,0.21335]
[1736653717223,1.00319978,3282.4,3282.3,0.21335]
[1736653718916,0.21335,3282.5,3282.4,0.21335]
[1736653719122,1.00319978,3282.6,3282.2,1.3653]
[1736653719316,1.21653978,3282.6,3282.5,0.21334]
[1736653720423,0.21335,3282.5,3282.4,0.21335]
[1736653721324,1.21653978,3282.6,3282.5,0.21334]
[1736653722628,1.00319978,3282.6,3282.5,0.21334]
[1736653723019,1.21653978,3282.6,3282.5,0.21334]
[1736653727326,1.00319978,3282.6,3282.3,3.2078]
[1736653727523,1.00319978,3282.6,3282.3,4.21099978]
[1736653727726,3.2078,3283.1,3282.5,1.00319978]
[1736653728028,1.00319978,3283.2,3282.8,1.00319978]
[1736653728331,1.21649978,3283.2,3283.1,0.21331]
[1736653728723,1.00319978,3283.2,3282.9,1.3149]
[1736653728925,0.21331,3283.0,3282.9,1.52822]
[1736653729625,1.21650978,3283.0,3282.9,0.64772]
[1736653736424,1.21650978,3283.0,3282.9,0.4344]
[1736653744631,1.00319978,3283.0,3282.6,0.21333]
[1736653744827,1.21652978,3282.7,3282.6,0.21333]
[1736653746640,1.00319978,3282.7,3282.6,0.21333]
[1736653748836,1.21652978,3282.7,3282.6,0.21333]
[1736653749036,1.00319978,3282.7,3282.5,0.9213]
[1736653749233,0.21334,3282.6,3282.5,0.9213]
[1736653749733,4.21099978,3282.7,3281.9,4.21099978]
[1736653749946,0.21336,3282.2,3282.1,0.66927]
[1736653753047,1.47509978,3282.5,3282.1,1.45909978]
[1736653753347,0.21335,3282.4,3282.3,0.21336]
[1736653754245,1.47509978,3282.5,3282.1,1.45909978]
[1736653754441,0.21336,3282.3,3282.2,0.21336]
[1736653755641,1.47509978,3282.5,3282.1,1.45909978]
[1736653755948,0.21336,3282.3,3282.2,0.21336]
[1736653756649,1.00319978,3282.3,3282.1,0.4559]
[1736653757458,1.21655978,3282.3,3282.2,0.21336]
[1736653758848,0.21335,3282.4,3282.1,0.4559]
[1736653759052,4.21099978,3282.7,3282.1,1.45909978]
[1736653759248,4.42433978,3282.7,3282.1,1.45909978]
[1736653759445,0.21334,3282.6,3282.5,0.21334]
[1736653760548,0.21334,3282.6,3282.4,0.21335]
[1736653760748,0.21334,3282.6,3282.5,0.435]
[1736653760944,0.21334,3282.6,3282.5,0.64834]
[1736653770457,3.42111,3283.1,3283.0,0.21331]
[1736653770764,0.21331,3283.0,3282.9,0.21331]
[1736653770952,1.21650978,3283.0,3282.9,0.21331]
[1736653771762,0.21332,3282.9,3282.8,0.21332]
[1736653774554,0.21332,3282.9,3282.6,0.4374]
[1736653774759,0.21332,3282.9,3282.8,0.21332]
[1736653777658,0.21333,3282.8,3282.7,0.21333]
[1736653779552,0.21333,3282.8,3282.7,0.65653]
[1736653781362,0.21333,3282.8,3282.7,0.4432]
[1736653785468,0.21333,3282.8,3282.7,0.65653]
[1736653786466,0.21333,3282.8,3282.7,0.4432]
[1736653786764,0.21333,3282.8,3282.7,0.65653]
[1736653788365,0.21333,3282.8,3282.7,0.4432]
[1736653799171,0.21333,3282.8,3282.7,0.65653]
[1736653799973,0.21333,3282.8,3282.7,0.4432]
[1736653801876,1.21652978,3282.8,3282.7,0.4432]
[1736653802072,0.21334,3282.6,3282.5,0.435]
[1736653802279,4.42433978,3282.6,3282.5,0.435]
[1736653802680,1.21653978,3282.6,3282.5,0.435]
[1736653806775,1.00319978,3282.6,3282.1,0.9039]
[1736653806982,0.21336,3282.2,3282.1,0.9039]
[1736653811785,0.21336,3282.2,3282.1,1.11727]
[1736653814087,0.21336,3282.2,3282.1,0.9039]
[1736653817183,0.66186,3282.2,3282.1,0.9039]
[1736653817989,0.4485,3282.2,3281.6,7.98642759]
[1736653818190,0.21339,3281.8,3281.7,1.1114]
[1736653818484,0.21339,3281.8,3281.7,0.898]
[1736653818789,0.21339,3281.8,3281.7,1.1114]
[1736653818984,1.21658978,3281.9,3281.7,0.898]
[1736653819288,1.21658978,3281.9,3281.7,1.11139]
[1736653820890,0.21339,3281.8,3281.7,1.1114]
[1736653821688,1.21658978,3281.9,3281.8,0.21339]
[1736653825681,3.2078,3282.6,3281.8,1.00319978]
[1736653825882,0.21334,3282.6,3282.4,0.21335]
[1736653826086,0.21334,3282.7,3282.5,1.55524]
[1736653826996,1.21653978,3282.6,3282.5,0.4423]
[1736653827287,0.21339,3281.9,3281.7,4.99201759]
[1736653827487,0.21339,3281.9,3281.8,0.8968]
[1736653827687,1.21658978,3281.9,3281.8,0.8968]
[1736653829493,0.21339,3281.9,3281.8,0.8968]
[1736653831393,0.21339,3281.9,3281.8,1.11019]
[1736653834195,0.21339,3281.9,3281.8,0.8968]
[1736653836098,0.21339,3281.9,3281.8,1.11019]
[1736653837189,0.21339,3281.9,3281.8,0.8968]
[1736653839098,0.21339,3281.9,3281.8,1.11019]
[1736653839300,3.2078,3282.2,3281.8,0.8968]
[1736653839600,0.21332,3282.8,3282.6,0.21334]
[1736653839892,0.21332,3282.8,3282.7,0.918]
[1736653844800,3.2078,3283.1,3282.7,0.918]
[1736653844999,3.42111,3283.1,3282.7,0.918]
[1736653845295,3.2078,3283.1,3282.7,0.918]
[1736653845500,0.21331,3283.0,3282.9,0.21332]
[1736653845700,3.42111,3283.1,3283.0,0.21331]
[1736653846504,3.42111,3283.1,3282.7,0.918]
[1736653846697,0.21331,3283.0,3282.9,0.21331]
[1736653849304,0.21331,3283.0,3282.8,0.21332]
[1736653850204,0.21331,3283.0,3282.7,0.918]
[1736653850502,0.21331,3283.0,3282.9,0.21332]
[1736653851506,0.21328,3283.5,3283.2,0.21329]
[1736653851699,3.2078,3283.6,3283.3,1.3745]
[1736653851894,0.21328,3283.5,3283.3,1.58779]
[1736653852699,0.21329,3283.4,3283.3,1.58779]
[1736653853100,3.2078,3283.6,3283.3,1.58779]
[1736653853406,0.21328,3283.5,3283.3,1.58779]
[1736653853999,3.42108,3283.6,3283.4,0.21328]
[1736653854198,0.21328,3283.5,3283.3,1.58779]
[1736653854604,3.2078,3283.6,3283.3,1.3745]
[1736653854902,0.21328,3283.5,3283.4,0.21328]
[1736653855098,3.2078,3283.6,3283.4,0.21328]
[1736653855299,0.21328,3283.5,3283.4,0.21328]
[1736653855602,0.21328,3283.5,3283.3,1.3745]
[1736653855603,3.42108,3283.6,3283.5,0.21328]
[1736653855802,0.21328,3283.5,3283.4,0.21328]
[1736653856203,3.42108,3283.6,3283.5,0.21328]
[1736653857104,3.2078,3283.6,3283.3,1.3745]
[1736653857502,0.21328,3283.5,3283.4,0.21328]
[1736653858302,0.21328,3283.6,3283.5,0.21328]
[1736653861209,0.39937817,3283.7,3283.3,1.3745]
[1736653861509,0.39937817,3283.7,3283.4,0.21328]
[1736653861510,0.21328,3283.5,3283.4,0.21328]
[1736653861998,0.39937817,3283.7,3283.3,1.3745]
[1736653862201,0.21328,3283.5,3283.4,0.21329]
[1736653868414,0.21327,3283.7,3283.6,0.21327]
[1736653869511,4.21054941,3283.9,3283.4,1.00274941]
[1736653869722,0.21326,3283.8,3283.7,0.21326]
[1736653872222,0.21325,3284.0,3283.9,0.21325]
[1736653872417,0.21325,3284.1,3284.0,0.21325]
[1736653872625,0.21325,3284.0,3283.9,0.21325]
[1736653872820,0.21326,3283.9,3283.8,0.21325]
[1736653873031,0.21323,3284.2,3283.7,0.21326]
[1736653873332,0.21326,3283.9,3283.8,0.67126]
[1736653873627,0.21325,3283.9,3283.8,0.67126]
[1736653874222,0.4712,3284.3,3283.8,0.458]
[1736653874422,0.21325,3284.0,3283.9,0.65405]
[1736653878426,3.2078,3284.4,3283.9,0.4408]
[1736653878734,2.11827545,3284.9,3284.5,0.21321]
[1736653878735,0.21321,3284.6,3284.5,0.21321]
[1736653879434,0.21322,3284.5,3284.4,0.21322]
[1736653879928,0.21322,3284.5,3284.0,3.2078]
[1736653880233,0.21322,3284.5,3284.4,0.21322]
[1736653881327,0.21321,3284.6,3284.5,0.21321]
[1736653882332,0.2132,3284.7,3284.4,0.21322]
[1736653882531,0.21321,3284.6,3284.5,0.4718]
[1736653883232,0.21321,3284.6,3284.5,0.68501]
[1736653884035,0.2132,3284.7,3284.6,0.2132]
[1736653884237,0.61246546,3284.8,3284.7,0.2132]
[1736653884439,0.2132,3284.7,3284.6,0.65581]
[1736653886036,0.2132,3284.7,3284.6,0.4426]
[1736653886226,0.21321,3284.6,3284.5,0.68501]
[1736653888229,0.2132,3284.7,3284.6,0.2132]
[1736653889638,0.2132,3284.7,3284.6,0.4482]
[1736653890136,0.2132,3284.7,3284.6,0.66141]
[1736653896438,0.2132,3284.7,3284.5,0.4718]
[1736653896439,0.21323,3284.3,3284.2,3.6585]
[1736653896640,1.21547597,3284.3,3284.2,0.4507]
[1736653897344,1.21547597,3284.3,3284.2,0.66393]
[1736653898541,1.00224597,3284.5,3284.2,0.4507]
[1736653898745,0.21322,3284.4,3284.3,0.21322]
[1736653903544,0.21322,3284.5,3284.4,0.21322]
[1736653904250,0.21322,3284.5,3284.3,0.21322]
[1736653904647,0.99479,3284.9,3284.4,1.00224597]
[1736653904648,1.46404597,3284.9,3284.4,1.00224597]
[1736653904847,0.2132,3284.8,3284.7,0.2132]
[1736653907451,4.65384597,3285.1,3284.6,1.46644597]
[1736653907755,0.21319,3285.0,3284.9,0.21319]
[1736653908056,4.65384597,3285.1,3284.7,0.4714]
[1736653908355,0.21319,3284.9,3284.8,0.21319]
[1736653908555,4.65384597,3285.1,3284.7,0.4714]
[1736653908742,4.65384597,3285.1,3284.9,0.21319]
[1736653908743,0.21319,3285.0,3284.9,0.21319]
[1736653912854,0.21319,3284.8,3284.7,0.6846]
[1736653915850,0.21319,3284.8,3284.7,0.4714]
[1736653921557,0.2132,3284.7,3284.6,0.4642]
[1736653921764,0.21322,3284.4,3284.3,6.1678]
[1736653921962,0.21322,3284.4,3284.3,2.96]
[1736653923265,1.00224597,3284.5,3283.9,5.82649597]
[1736653923465,0.21325,3284.0,3283.9,5.82649597]
[1736653924270,0.21325,3284.0,3283.9,5.61324597]
[1736653927077,0.21325,3284.0,3283.9,2.40544597]
[1736653932473,0.21324,3284.2,3283.9,2.40544597]
[1736653932668,11.9481236,3284.4,3284.3,0.21323]
[1736653932973,12.1613436,3284.4,3284.3,0.21323]
[1736653933173,12.1613436,3284.4,3284.3,0.69013]
[1736653933476,11.9481236,3284.4,3284.3,0.69013]
[1736653933671,3.42102,3284.5,3284.3,0.4769]
[1736653933973,3.42102,3284.5,3284.4,2.16586597]
[1736653934579,3.2078,3284.5,3284.4,2.16586597]
[1736653934786,0.2132,3284.7,3284.6,0.21321]
[1736653934987,0.2132,3284.7,3284.6,1.21545597]
[1736653935678,0.2132,3284.8,3284.7,0.2132]
[1736653935878,1.00224597,3285.0,3284.6,1.00224597]
[1736653935879,14.85137388,3285.4,3284.6,1.00224597]
[1736653936078,15.85361985,3285.4,3285.0,1.00224597]
[1736653936377,0.21318,3285.1,3285.0,1.00224597]
[1736653936579,13.91847388,3285.4,3285.0,1.00224597]
[1736653936774,14.92071985,3285.4,3285.0,1.00224597]
[1736653937280,3.2078,3285.4,3284.8,0.21319]
[1736653937477,0.21319,3285.0,3284.8,0.21319]
[1736653937671,0.21319,3285.0,3284.6,2.11649662]
[1736653937981,0.21319,3285.0,3284.9,0.21319]
[1736653938177,3.2078,3285.4,3284.9,0.21319]
[1736653938483,3.42096,3285.4,3284.9,2.11649662]
[1736653938672,3.42096,3285.4,3285.2,0.21317]
[1736653938878,0.21316,3285.3,3285.2,0.21317]
[1736653939081,3.42096,3285.4,3284.9,2.11649662]
[1736653939378,3.42096,3285.4,3285.2,0.21316]
[1736653939379,3.2078,3285.4,3285.2,0.21316]
[1736653939572,0.21316,3285.3,3285.2,0.21316]
[1736653939772,3.2078,3285.4,3284.9,0.21319]
[1736653939987,0.21316,3285.3,3284.8,0.21319]
[1736653940182,0.21319,3285.0,3284.8,0.21319]
[1736653940781,0.21317,3285.2,3284.8,0.21319]
[1736653941080,0.21319,3285.0,3284.8,0.21319]
[1736653941881,0.21318,3285.1,3284.9,0.21318]
[1736653942782,0.21318,3285.0,3284.9,0.21318]
[1736653943378,0.21318,3285.0,3284.7,3.2078]
[1736653943575,0.21318,3285.0,3284.8,0.21319]
[1736653943772,0.21318,3285.0,3284.7,3.2078]
[1736653943979,0.21318,3285.0,3284.9,0.21319]
[1736653947979,0.9313,3285.3,3284.6,2.11649662]
[1736653948179,0.21321,3284.6,3284.5,0.21321]
[1736653948379,0.53293,3285.2,3284.3,5.32429662]
[1736653948684,0.53295,3285.1,3284.3,5.32429662]
[1736653948984,0.21321,3284.6,3284.5,0.21321]
[1736653949888,0.21321,3284.6,3284.5,3.42101]
[1736653950582,0.21321,3284.6,3284.5,3.88321]
[1736653952077,0.21321,3284.6,3284.5,4.35401]
[1736653952280,0.21321,3284.6,3284.5,4.1408]
[1736653955188,0.21321,3284.6,3284.5,0.933]
[1736653960990,1.21546331,3284.6,3284.5,0.4708]
[1736653961197,0.21323,3284.4,3284.2,0.21323]
[1736653961388,0.4772,3284.3,3284.2,0.67863]
[1736653961690,0.4772,3284.3,3284.2,0.4654]
[1736653961887,0.69043,3284.3,3284.2,0.4654]
[1736653968797,0.21323,3284.3,3284.2,0.67863]
[1736653970597,0.21322,3284.4,3284.3,0.21323]
[1736653972094,3.2078,3284.6,3284.3,1.00225331]
[1736653972294,3.2078,3284.6,3284.5,0.21321]
[1736653973995,3.2078,3284.6,3284.5,1.21546331]
[1736653975197,3.2078,3284.6,3284.5,0.21321]
[1736653975198,3.42101,3284.6,3284.5,0.21321]
[1736653978109,3.2078,3284.6,3284.5,0.21321]
[1736653979706,3.42101,3284.6,3284.5,0.21321]
[1736653979896,0.21321,3284.5,3284.4,0.68852]
[1736653980095,3.42101,3284.6,3284.5,0.21321]
[1736653980501,3.2078,3284.6,3284.4,0.4753]
[1736653980807,0.21321,3284.5,3284.4,0.68851]
[1736653982007,3.2078,3284.6,3284.4,0.4753]
[1736653982406,3.2078,3284.6,3284.4,0.68851]
[1736653982407,0.21321,3284.5,3284.4,0.68851]
[1736653983007,3.2078,3284.6,3284.4,0.4753]
[1736653983202,3.42101,3284.6,3284.5,0.21321]
[1736653983399,3.2078,3284.6,3284.4,0.4753]
[1736653983604,0.21321,3284.5,3284.4,0.68851]
[1736653986509,0.21321,3284.5,3284.4,0.68852]
[1736653988111,0.21321,3284.6,3284.5,0.21321]
[1736653990015,0.21321,3284.6,3284.5,0.66571]
[1736653991708,0.21321,3284.6,3284.5,0.4525]
[1736653992011,0.21321,3284.5,3284.4,0.4753]
[1736653992408,0.21321,3284.5,3284.4,0.68852]
[1736653995107,0.21322,3284.4,3284.3,0.65872]
[1736654002008,0.21322,3284.4,3284.3,1.66097331]
[1736654004116,0.21322,3284.4,3284.3,1.66098331]
[1736654004409,0.21322,3284.4,3284.3,0.65873]
[1736654017432,0.4407,3284.6,3284.3,0.4455]
[1736654017631,0.21322,3284.5,3284.4,0.21322]
[1736654022641,0.21322,3284.4,3284.3,0.65872]
[1736654023933,0.21323,3284.3,3284.2,0.4654]
[1736654024141,0.21325,3284.0,3283.9,8.20790837]
[1736654024340,0.21325,3284.0,3283.9,8.65520837]
[1736654025035,0.21324,3284.1,3284.0,0.21325]
[1736654027847,0.4322,3284.2,3283.9,4.65735331]
[1736654028037,3.74079,3284.8,3283.9,4.65735331]
[1736654028038,3.2078,3284.8,3284.1,1.00225331]
[1736654028242,0.4398,3284.7,3284.4,1.21547331]
[1736654028440,0.4398,3284.7,3284.4,1.00225331]
[1736654028646,0.21321,3284.7,3284.5,0.21321]
[1736654028952,3.2078,3284.8,3284.7,0.2132]
[1736654029342,3.2078,3284.8,3284.7,1.1417]
[1736654030043,1.21543331,3285.1,3285.0,0.21318]
[1736654030246,0.21318,3285.1,3285.0,0.21318]
[1736654034446,0.21318,3285.0,3284.9,0.21318]
[1736654035058,0.21319,3284.9,3284.8,0.21319]
[1736654039762,1.00225331,3285.1,3284.7,0.9285]
[1736654039955,0.21319,3284.8,3284.7,1.1417]
[1736654040152,0.21319,3284.8,3284.7,0.9285]
[1736654040456,0.21321,3284.6,3284.5,3.2078]
[1736654042054,0.21321,3284.6,3284.5,3.6543]
[1736654042560,0.21321,3284.6,3284.5,0.4465]
[1736654044264,0.21323,3284.3,3284.2,0.8828]
[1736654044564,1.21548331,3284.3,3284.2,0.8828]
[1736654045368,0.21325,3284.0,3283.9,0.21325]
[1736654045559,0.21325,3284.0,3283.9,1.14625]
[1736654045761,0.21325,3284.0,3283.9,0.933]
[1736654045955,0.21325,3284.0,3283.9,1.14625]
[1736654053261,1.00225331,3284.1,3283.9,1.14625]
[1736654053461,1.21549331,3284.1,3283.9,1.14625]
[1736654054562,1.00225331,3284.1,3283.9,1.14625]
[1736654054769,0.21325,3284.0,3283.9,1.14625]
[1736654055867,1.00225331,3284.1,3283.9,1.14625]
[1736654056070,1.21549331,3284.1,3283.9,1.14625]
[1736654056263,0.21325,3284.0,3283.9,1.14625]
[1736654057069,1.00225331,3284.1,3283.9,1.14625]
[1736654057070,1.21549331,3284.1,3283.9,1.14625]
[1736654057870,1.21549331,3284.1,3284.0,0.21325]
[1736654058671,0.21325,3284.0,3283.9,1.14625]
[1736654059570,1.00225331,3284.1,3283.9,0.933]
[1736654059870,0.21325,3284.0,3283.9,1.14625]
[1736654060871,1.21549331,3284.1,3283.9,1.14625]
[1736654062469,1.21549331,3284.1,3283.9,0.933]
[1736654062668,1.21549331,3284.1,3284.0,0.21325]
[1736654066870,1.00225331,3284.1,3283.9,0.933]
[1736654067172,0.21325,3284.0,3283.9,1.14625]
[1736654067473,1.21549331,3284.1,3284.0,0.21325]
[1736654068664,1.00225331,3284.1,3283.9,0.933]
[1736654068869,0.21325,3284.0,3283.9,1.14625]
[1736654071369,0.21325,3284.0,3283.9,0.933]
[1736654072769,0.21325,3284.0,3283.9,1.14625]
[1736654084969,0.21325,3284.0,3283.9,0.933]
[1736654085179,0.21325,3284.0,3283.9,0.4691]
[1736654085385,0.21326,3283.8,3283.7,3.39090384]
[1736654085690,1.21551331,3283.8,3283.7,3.39090384]
[1736654086184,0.21327,3283.6,3283.5,3.42108]
[1736654086385,1.00225331,3283.6,3283.5,3.42108]
[1736654086685,1.21552331,3283.6,3283.5,3.42108]
[1736654087984,1.21552331,3283.6,3283.5,0.21328]
[1736654091186,1.00225331,3283.6,3283.5,0.21328]
[1736654092091,0.21327,3283.7,3283.6,0.21327]
[1736654092387,1.21550331,3284.0,3283.9,0.21325]
[1736654092578,0.4341,3284.3,3283.7,0.4705]
[1736654092780,1.00225331,3284.1,3283.8,0.4645]
[1736654092987,1.21549331,3284.1,3284.0,0.21324]
[1736654093490,1.00225331,3284.1,3284.0,0.21324]
[1736654095191,3.2078,3284.4,3284.0,1.00225331]
[1736654095395,1.50063804,3284.7,3284.2,1.00225331]
[1736654095689,1.50063804,3284.7,3284.6,0.21321]
[1736654096295,1.28743804,3284.7,3284.6,0.21321]
[1736654096787,0.21321,3284.6,3284.5,0.21321]
[1736654097188,1.50064804,3284.7,3284.6,0.21321]
[1736654098692,0.21321,3284.6,3284.5,0.21321]
[1736654104992,1.50063804,3284.7,3284.6,0.21321]
[1736654105497,0.21321,3284.6,3284.5,0.21321]
[1736654107201,0.21321,3284.5,3284.4,0.65352]
[1736654107596,0.21321,3284.5,3284.4,0.4403]
[1736654108902,0.21321,3284.5,3284.4,0.65352]
[1736654110199,0.21321,3284.5,3284.4,0.4403]
[1736654110599,0.21321,3284.5,3284.4,0.65352]
[1736654111695,0.2132,3284.7,3284.6,0.21321]
[1736654112700,0.2132,3284.7,3284.5,0.21321]
[1736654113400,0.21321,3284.6,3284.5,0.21321]
[1736654117801,0.21321,3284.7,3284.5,0.21321]
[1736654118600,3.2078,3285.2,3284.6,1.00225331]
[1736654118800,3.2078,3285.2,3284.8,1.00225331]
[1736654119003,3.2078,3285.2,3284.9,0.8777]
[1736654119204,0.21318,3285.0,3284.9,1.56078]
[1736654120402,0.21318,3285.0,3284.9,0.441]
[1736654120708,0.21321,3284.6,3284.5,0.21321]
[1736654120910,0.21321,3284.6,3284.5,0.65421]
[1736654121912,0.2132,3284.7,3284.6,0.21321]
[1736654125005,4.21005331,3285.0,3284.5,1.44325331]
[1736654125310,0.21319,3284.9,3284.7,0.2132]
[1736654125705,0.21319,3284.9,3284.8,0.4499]
[1736654130713,0.21319,3284.9,3284.8,0.66309]
[1736654135713,0.21319,3284.9,3284.8,0.4499]
[1736654136918,0.21319,3284.9,3284.8,0.66309]